Cogmind - Beta 15 @@@ ROGUE MODE // 2025.07.20 @ 19:27:18 Player: Skysub Result: Core destroyed Performance ------------- Evolutions (9) 4500 Regions Visited (25) 5000 Robots Destroyed (129) 645 Value Destroyed (4732) 4732 Prototype IDs (81) 1620 Alien Tech Used (12) 2400 Bonus (21068) 21068 TOTAL SCORE: 39965 Bonus ------- Triggered Max Security 1000 High Alert Combat Kills 727 Follower Combat Kills 3341 Forged Quantum Companion 1000 Network Hubs Disabled 600 Registered with UFD 300 Met Optimus in HQ 500 Met Zhirov 300 Met Warlord at Base 500 MAIN.C Attacked Warlord 500 Built Enhanced Grunts 300 Met R17 at Cetus 500 Used Core Reset Matrix 3000 Met R17 at Research 2000 Scanned by Researcher 1000 Pursued by Intercept 500 Met Sigix 2000 Activated Exoskeleton 3000 Cogmind --------- Core Integrity 0/1600 Matter 300/300 Energy 100/100 System Corruption 0% +Membrane Temperature Cool (0) Movement Core (50) +NEM 1 Location -1/Access Parts ------- > --- POWER (2) -------- (None) > --- PROPULSION (5) --- Centrium Leg > --- UTILITY (14) ----- Experimental Core Analyzer Improved Armor Integrity Analyzer Spacefold Activator > --- WEAPON (4) ------- Quantum Companion > --- INVENTORY (5) ---- Core Cannon Multirail Peak State ------------ > --- POWER ------------ Light Antimatter Reactor Light Quantum Reactor > --- PROPULSION ------- Flexi-carbon Leg Enhanced Biometal Leg Enhanced Biometal Leg Cooled Impulse Thruster Cooled Impulse Thruster Cooled Impulse Thruster > --- UTILITY ---------- Small Storage Unit Spectral Analyzer Advanced Signal Interpreter Experimental Core Analyzer Heavy Regenerative Plating Graphene Brace Core Physics Calibrator Microwarp Drive > --- WEAPON ----------- Sigix Sheargun Quantum Companion > --- INVENTORY -------- Advanced Sensor Array Centrium Light Armor Plating Spacefold Activator Core Cannon [Rating: 199] Favorites ----------- Power Ion Engine Engine Ion Engine Power Core Micro Nuclear Core Reactor Quantum Reactor Propulsion Cooled VTOL Module Treads Light Treads Leg Enhanced Biometal Leg Wheel Compact Wheel Hover Unit Hover Unit Flight Unit Cooled VTOL Module Utility Advanced Sensor Array Device Advanced Sensor Array Storage Large Storage Unit Processor Spectral Analyzer Hackware Improved Hacking Suite Protection Centrium Medium Armor Plating Artifact Core Physics Calibrator Weapon Companion Sword Energy Gun Sigix Sheargun Energy Cannon Vortex Driver Ballistic Gun Assault Rifle Launcher Mini Grenade Launcher Special Weapon Improved Plasma Cutter Impact Weapon Hammer Slashing Weapon Companion Sword Special Melee Weapon Improved Datajack Build | -11 -10 -10 -8 -8 -6 -6 -6 -6 -6 -5 -5 -5 -5 -4 -4 -4 -4 -4 -3 -3 -3 -3 -2 -2 -1 ------- Run | Yrd Mat Sub Rec Scr Fac Ext Cet Arc Hub Fac Upp Upp War Pro Fac Upp Upp Zhi Pro Res Qua Sec Res Tes Acc Slots Evolved 18 | . . . . . 8 . . . . 2 . . . . 2 . . . . 2 . . 2 . 2 Power 1 | . . . . . 1 . . . . . . . . . . . . . . . . . 1 . -1 Propulsion 3 | . . . . . 3 . . . . . . . . . 1 . . . . . . . -2 . 1 Utility 12 | . . . . . 4 . . . . 2 . . . . 1 . . . . 2 . . 2 . 1 Weapon 2 | . . . . . . . . . . . . . . . . . . . . . . . 1 . 1 Parts Attached 194 | 6 7 4 6 7 18 3 6 2 7 13 . 1 7 3 5 . . 1 1 16 5 31 4 6 35 Power 22 | 1 1 . . 1 2 . 2 . 1 2 . . 1 . . . . . . 2 . 5 3 . 1 Engine 6 | 1 1 . . . 1 . 1 . 1 . . . . . . . . . . 1 . . . . . Core 4 | . . . . 1 1 . . . . 2 . . . . . . . . . . . . . . . Reactor 12 | . . . . . . . 1 . . . . . 1 . . . . . . 1 . 5 3 . 1 Propulsion 62 | 2 3 1 3 1 8 . 2 . 6 4 . . 2 . . . . . . 5 1 7 1 3 13 Treads 5 | 2 1 . . . . . 2 . . . . . . . . . . . . . . . . . . Leg 10 | . . . . . . . . . . . . . . . . . . . . . . 3 1 . 6 Wheel 6 | . 1 1 2 . . . . . . . . . . . . . . . . . . . . . 2 Hover 1 | . 1 . . . . . . . . . . . . . . . . . . . . . . . . Flight 40 | . . . 1 1 8 . . . 6 4 . . 2 . . . . . . 5 1 4 . 3 5 Utility 87 | 1 2 . 1 3 7 2 2 2 . 6 . 1 3 3 5 . . 1 1 9 4 14 . 2 18 Device 36 | . 1 . . 1 2 1 . . . 4 . 1 1 1 2 . . . 1 7 3 3 . 2 6 Storage 7 | 1 1 . . 2 . . . . . 1 . . . . 1 . . . . . . 1 . . . Processor 16 | . . . . . 3 . . . . . . . 2 1 2 . . . . 1 . 3 . . 4 Hackware 8 | . . . . . 1 1 . 2 . 1 . . . . . . . . . 1 1 . . . 1 Protection 17 | . . . 1 . 1 . 2 . . . . . . 1 . . . 1 . . . 4 . . 7 Artifact 3 | . . . . . . . . . . . . . . . . . . . . . . 3 . . . Weapon 23 | 2 1 3 2 2 1 1 . . . 1 . . 1 . . . . . . . . 5 . 1 3 Energy Gun 3 | . . . . . . . . . . . . . . . . . . . . . . 2 . 1 . Energy Cannon 2 | . . . . . . . . . . . . . 1 . . . . . . . . 1 . . . Ballistic Gun 9 | 2 1 1 1 . . . . . . . . . . . . . . . . . . 1 . . 3 Ballistic Cannon . | . . . . . . . . . . . . . . . . . . . . . . . . . . Launcher 2 | . . 1 1 . . . . . . . . . . . . . . . . . . . . . . Special Weapon 2 | . . . . . 1 . . . . 1 . . . . . . . . . . . . . . . Impact Weapon 2 | . . 1 . 1 . . . . . . . . . . . . . . . . . . . . . Slashing Weapon 2 | . . . . 1 . . . . . . . . . . . . . . . . . 1 . . . Piercing Weapon . | . . . . . . . . . . . . . . . . . . . . . . . . . . Special Melee Weapon 1 | . . . . . . 1 . . . . . . . . . . . . . . . . . . . Unidentified Prototypes 34 | . . . . 1 1 . 2 . . 4 . . 6 1 1 . . 2 . 3 1 8 . 3 1 Corrupted Parts 1 | . . . . . . . 1 . . . . . . . . . . . . . . . . . . System Corruption 1 | . . . . . . . 1 . . . . . . . . . . . . . . . . . . Parts Lost 83 | . 3 2 1 . 7 8 . . . 1 . . 1 1 . . . . 1 6 . 9 . 9 34 Power 10 | . 1 . . . 1 1 . . . . . . . . . . . . . 2 . 3 . . 2 Propulsion 35 | . 2 1 1 . 5 3 . . . 1 . . 1 . . . . . . . . 3 . 6 12 Utility 32 | . . . . . 1 3 . . . . . . . 1 . . . . 1 4 . 1 . 3 18 Weapon 6 | . . 1 . . . 1 . . . . . . . . . . . . . . . 2 . . 2 Highest Loss Streak 12 | . 1 1 1 . 4 4 . . . 1 . . 1 2 . . . . 1 3 . 5 . 4 12 To Critical Strikes 2 | . . 1 . . . . . . . . . . . . . . . . . . . . . . 1 Average Backups 6 | 2 6 13 14 8 7 6 4 4 5 4 4 3 4 4 4 4 4 4 4 3 4 4 2 3 5 Power . | . . 1 2 . . . . . . . . . . . . . . . . . . . . 1 2 Propulsion . | . 1 1 1 . . . . . . . . . . . . . . . . . . . . . 1 Utility 3 | . . 3 4 5 5 5 3 4 4 3 4 3 3 3 3 3 3 3 3 2 3 2 1 1 . Weapon 2 | 1 5 7 6 1 . . . . . . . . . 1 1 1 1 1 1 1 1 1 1 1 1 Tool/Special . | . . . . . . . . . . . . . . . . . . . . . . . . . . Unused Backups 30 | . 1 2 1 12 1 1 . 1 . 3 1 . 1 . . 1 . . . . 2 2 . . 1 Power 2 | . . . . 2 . . . . . . . . . . . . . . . . . . . . . Propulsion 2 | . . . . . . . . . . 1 . . . . . . . . . . . . . . 1 Utility 14 | . . . . 4 1 1 . 1 . 2 1 . 1 . . 1 . . . . 1 1 . . . Weapon 10 | . 1 2 1 5 . . . . . . . . . . . . . . . . 1 . . . . Tool/Special 2 | . . . . 1 . . . . . . . . . . . . . . . . . 1 . . . Average Slot Usage (%) 85 | . 89 100 99 82 80 66 75 86 91 98 100 100 96 79 83 89 88 89 87 91 90 90 66 63 58 Engine 6 | . 13 14 14 10 . . 4 6 6 5 5 5 4 5 5 5 5 5 5 3 . . . . . Core 1 | . . . . 2 7 3 . . . 4 5 5 4 1 2 5 5 5 5 1 . . . . . Reactor 1 | . . . . . . . 4 6 5 . . . . . . . . . . 2 4 5 1 5 1 Treads 5 | . 25 14 9 . . . 11 13 6 . . . . . . . . . . . . . . . . Leg 1 | . . . . . . . . . . . . . . . . . . . . . . 5 8 8 7 Wheel 5 | . 1 14 18 15 . . . . . . . . . . . . . . . . . . . . 1 Flight 11 | . . . . 2 25 19 6 6 18 28 29 29 29 23 21 21 20 21 21 24 28 22 7 4 5 Device 10 | . . 14 9 8 10 7 1 . . 15 17 17 14 11 18 21 21 21 19 20 19 14 8 9 9 Storage 7 | . 18 14 14 13 6 4 . . . . . . . . . . . . . . . 2 4 4 3 Processor 7 | . . . . . 8 13 13 13 13 11 11 11 11 11 14 15 15 15 15 14 14 16 13 13 13 Hackware 4 | . . . . . 5 6 13 13 13 11 11 11 11 5 5 5 5 5 5 8 8 3 . . 1 Protection 4 | . . . 4 3 4 . 11 13 13 6 5 5 5 5 4 5 5 5 5 4 4 4 7 4 5 Ballistic Gun 3 | . 27 5 . . . . . . . . . . . . . . . . . . . . . . 1 Launcher 3 | . . 12 14 10 . . . . . . . . . . . . . . . . . . . . . Special Weapon 1 | . . . . . . . 1 6 6 5 5 5 5 5 5 5 5 5 5 4 4 1 . . . Impact Weapon 3 | . . 9 13 10 . . . . . . . . . . . . . . . . . . . . . Slashing Weapon 3 | . . . . 2 6 6 6 6 6 5 5 5 5 5 5 5 5 5 5 4 4 4 4 4 4 Peak Build Rating 199 | 6 8 12 15 21 43 44 91 96 96 88 88 90 111 99 107 101 101 106 103 136 140 199 184 185 157 Average Rating 64 | 5 6 10 13 14 37 36 80 94 82 83 87 88 92 88 98 101 100 100 99 123 135 163 170 155 112 On Entrance 78 | . 6 8 12 15 18 40 32 91 96 72 87 88 88 93 94 101 101 101 101 96 134 138 154 184 97 Naked Turns 24 | . . . . 24 . . . . . . . . . . . . . . . . . . . . . Heaviest Build 75 | 11 33 29 32 32 32 19 42 42 42 29 27 27 41 25 25 25 25 25 26 38 39 70 75 75 66 Greatest Support 160 | 40 40 20 20 16 30 18 160 160 160 30 28 28 31 26 26 26 26 26 30 53 47 80 75 75 86 Greatest Overweight (x) 10 | . 3 2 10 1 1 1 1 . 1 1 . . 1 . 2 . . . . . . 2 1 5 3 Average Overweight (x) . | . . 1 1 . . . . . . . . . . . . . . . . . . . . . . Largest Inventory Capacity 15 | 8 15 15 15 15 15 8 5 5 5 5 5 5 5 5 10 5 5 5 5 5 5 8 8 8 8 Average Capacity 9 | 7 10 15 15 14 8 7 5 5 5 5 5 5 5 5 5 5 5 5 5 5 5 7 8 8 7 Most Carried 15 | 4 9 15 15 15 14 8 5 5 5 5 5 5 5 5 5 5 5 5 5 5 5 8 4 8 8 Average Carried 7 | 2 6 14 14 8 7 6 4 4 4 4 4 4 4 4 4 5 5 5 4 4 4 6 3 5 6 Final Capacity 15 | 8 15 15 15 15 8 5 5 5 5 5 5 5 5 5 5 5 5 5 5 5 5 8 8 8 5 Final Carried 15 | 4 9 15 15 14 7 4 4 5 5 5 5 5 5 5 5 5 5 5 5 5 5 5 4 8 3 Class Distribution -------------------- 44% | Mutant 10% | Scavenger-Scout 7% | Scavenger-Mutant 7% | Alien-Assassin 6% | Hacker-Ninja 4% | Alien-Mutant 4% | Infiltrator-Ninja Dominant Class ---------------- Mutant | -10/Materials Mutant | -10/Subcaves Mutant | -8/Recycling Mutant | -8/Scraptown Scavenger-Scout | -6/Factory Scavenger-Scout | -6/Extension Scavenger-Mutant | -6/Cetus Scavenger-Mutant | -6/Archives Scavenger-Mutant | -6/Hub_04(d) Scavenger-Scout | -5/Factory Scavenger-Scout | -5/Upper Caves Scavenger-Scout | -5/Upper Caves Commander-Scout | -5/Warlord Scout | -4/Proximity Caves Infiltrator-Ninja | -4/Factory Infiltrator-Ninja | -4/Upper Caves Infiltrator-Ninja | -4/Upper Caves Infiltrator-Ninja | -4/Zhirov Infiltrator-Ninja | -3/Proximity Caves Hacker-Ninja | -3/Research Hacker-Ninja | -3/Quarantine Alien-Ninja | -3/Section 7 Alien-Assassin | -2/Research Alien-Assassin | -2/Testing Alien-Mutant | -1/Access Resources | -11 -10 -10 -8 -8 -6 -6 -6 -6 -6 -5 -5 -5 -5 -4 -4 -4 -4 -4 -3 -3 -3 -3 -2 -2 -1 ----------- Run | Yrd Mat Sub Rec Scr Fac Ext Cet Arc Hub Fac Upp Upp War Pro Fac Upp Upp Zhi Pro Res Qua Sec Res Tes Acc Matter Collected 3264 | 372 290 426 155 98 198 105 122 36 84 206 7 30 56 64 108 6 5 . 50 180 119 338 15 26 168 Remotely 5 | . . . . . . . . . . . . . . . . . . . . . . . . . 5 Salvage Created 5947 | 213 739 133 328 . 265 384 141 135 . 299 219 108 . . 263 . . . . 266 298 856 76 362 862 Parts 322 | 10 62 8 9 . 19 12 7 10 . 16 12 3 . . 12 . . . . 10 17 40 8 26 41 Haulers Intercepted 1 | . . . . . . . . . . . . . . . . . . . . 1 . . . . . Recyclers Shooed 2 | . . . 1 . . 1 . . . . . . . . . . . . . . . . . . . Parts Field Recycled . | . . . . . . . . . . . . . . . . . . . . . . . . . . Retrieved Matter . | . . . . . . . . . . . . . . . . . . . . . . . . . . Parts Self-Destructed 24 | . . . . . . . . . . . 15 8 . . . 1 . . . . . . . . . Prevented . | . . . . . . . . . . . . . . . . . . . . . . . . . . Kills | -11 -10 -10 -8 -8 -6 -6 -6 -6 -6 -5 -5 -5 -5 -4 -4 -4 -4 -4 -3 -3 -3 -3 -2 -2 -1 ------- Run | Yrd Mat Sub Rec Scr Fac Ext Cet Arc Hub Fac Upp Upp War Pro Fac Upp Upp Zhi Pro Res Qua Sec Res Tes Acc Combat Hostiles Destroyed 64 | . 16 3 1 . 7 3 2 . . 3 5 2 . . . . . . . 1 . 6 1 5 9 Melee 34 | . . . . . 7 3 2 . . 3 5 2 . . . . . . . 1 . 5 . 2 4 Guns 16 | . 16 . . . . . . . . . . . . . . . . . . . . . . . . Cannons 10 | . . . . . . . . . . . . . . . . . . . . . . 1 1 3 5 AOE 4 | . . 3 1 . . . . . . . . . . . . . . . . . . . . . . Classes Destroyed 18 | 3 4 1 1 . . 1 . . . . . . . . . . . . . 1 1 4 . 1 1 Worker 9 | 2 2 . . . 1 . . . . . . . . . 1 . . . . . 1 . . 2 . Builder 12 | . 6 . . . . . . . . 1 . . . . 1 . . . . . . . 1 1 2 Tunneler 6 | 4 . . . . 1 . . . . . . . . . . . . . . . . . . . 1 Hauler 1 | . . . . . . . . . . . . . . . . . . . . 1 . . . . . Recycler 11 | 1 1 . 3 . . 1 . . . 1 . . . . 1 . . . . . 1 . . . 2 Carrier 1 | . . . . . . . . . . . . . . . . . . . . . . 1 . . . Operator 9 | . . . . . . 1 . 4 . 1 . . . . . . . . . 1 . 1 . 1 . Watcher 10 | . 2 . . . 1 1 . . . 1 . . . . 2 . . . . 1 1 1 . . . Swarmer 25 | . 8 . . . 6 . . . . 2 4 1 . . . . . . . . . . . . 4 Saboteur 1 | . . . . . . . . . . . . . . . . . . . . . . . . 1 . Grunt 17 | . 8 . . . 1 3 . . . . 1 . . . . . . . . . . 2 . 2 . Brawler 1 | . . . . . . . . . . . . . . . . . . . . . . 1 . . . Duelist 1 | . . . . . . . . . . . . . . . . . . . . . . 1 . . . Researcher 6 | . . . . . . . . . . . . . . . . . . . . . 2 4 . . . Sentry 4 | . . . 1 . . . . . . 1 . 1 . . . . . . . 1 . . . . . Hunter 4 | . . . . . . . . . . . . . . . . . . . . . . . . . 4 Programmer 5 | . . . . . . . . . . . . . . . . . . . . . . 1 1 2 1 Cetus Guard 2 | . . . . . . . 2 . . . . . . . . . . . . . . . . . . S7 Guard 1 | . . . . . . . . . . . . . . . . . . . . . . 1 . . . Subdweller 3 | . . 3 . . . . . . . . . . . . . . . . . . . . . . . Best Kill Streak 4 | 3 4 1 1 . 4 3 1 2 . 3 4 2 . . 2 . . . . 1 3 2 1 3 4 Combat Bots Only 4 | . 4 1 1 . 4 2 1 . . 3 4 2 . . . . . . . 1 . 2 1 2 4 Max Kills in Single Turn 2 | 1 1 1 1 . 2 1 1 1 . 1 2 1 . . 1 . . . . 1 1 1 1 1 2 Gunslinging . | . . . . . . . . . . . . . . . . . . . . . . . . . . Exploded 1 | . . 1 1 . . . . . . . . . . . . . . . . . . . . . . Melee 2 | . . . . . 2 1 1 . . 1 2 1 . . . . . . . 1 . 1 . 1 1 Uniques/NPCs Destroyed . | . . . . . . . . . . . . . . . . . . . . . . . . . . Combat | -11 -10 -10 -8 -8 -6 -6 -6 -6 -6 -5 -5 -5 -5 -4 -4 -4 -4 -4 -3 -3 -3 -3 -2 -2 -1 -------- Run | Yrd Mat Sub Rec Scr Fac Ext Cet Arc Hub Fac Upp Upp War Pro Fac Upp Upp Zhi Pro Res Qua Sec Res Tes Acc Hostile Shots Fired 1293 | . 87 11 6 . 45 45 38 16 19 14 8 19 6 37 2 . 8 . 8 82 31 182 57 111 461 Missed 546 | . 19 3 3 . 10 21 23 7 9 4 3 5 5 21 2 . 2 . 6 47 20 70 21 39 206 Deflected 11 | . . . . . . . . . . . . . . . . . . . . . . 5 . 2 4 Hits 747 | . 68 8 3 . 35 24 15 9 10 10 5 14 1 16 . . 6 . 2 35 11 112 36 72 255 Melee 21 | . . . . . . . . . . . 1 . 1 . . . . . . . . 7 . 12 . Projectile 726 | . 68 8 3 . 35 24 15 9 10 10 4 14 . 16 . . 6 . 2 35 11 105 36 60 255 AOE 1 | . . . . . . . . . . . . . . . . . . . . . . . 1 . . Critical Strikes 41 | . 1 1 . . 1 2 3 1 . . . 1 . . . . . . . . 1 12 2 3 13 Actively Blocked 17 | . . . . . . . . . . . . 1 . . . . . . . . 1 9 2 3 1 Part Disruptions 1 | . . . . . . . . . . . . . . . . . . . . . . . 1 . . Damage Taken 17056 | . 717 296 41 . 561 622 387 211 111 235 127 236 65 205 8 . 132 . 53 782 230 3204 882 2358 5593 Core 4732 | . 139 108 . . 109 229 150 25 23 63 14 37 13 59 8 . 23 . . 220 14 636 350 911 1601 Absorbed by Shields 160 | . . . . . . 27 . . . . . . . . . . . . . . . . . . 133 Redirected to Shielding 102 | . . . . . 28 . . . . . . . . . . . . . . . . 15 . . 59 Regen/Repaired (Parts) 1106 | . . . . . . . . . . . . . 194 . . . . . . . . 48 320 531 13 Core Remaining (%) 54 | 100 . . . 1 . . . . 36 . . . . 81 . . . . 97 . . 52 . 13 . Volleys Fired 182 | 28 109 13 1 . . 4 3 1 . . . . . . . . . . . . . 20 . 1 2 Largest 2 | 2 2 2 2 . . 1 1 1 . . . . . . . . . . . . . 1 . 1 1 Hottest 300 | 40 40 50 60 . . 5 5 5 . . . . . . . . . . . . . 300 . 40 33 Shots Fired 306 | 56 199 19 2 . . 4 3 1 . . . . . . . . . . . . . 19 . 1 2 Gun 285 | 56 199 9 . . . . . . . . . . . . . . . . . . . 18 . 1 2 Cannon 1 | . . . . . . . . . . . . . . . . . . . . . . 1 . . . Launcher 12 | . . 10 2 . . . . . . . . . . . . . . . . . . . . . . Special 8 | . . . . . . 4 3 1 . . . . . . . . . . . . . . . . . Kinetic 272 | 56 199 9 . . . . . . . . . . . . . . . . . . . 6 . . 2 Thermal 1 | . . . . . . . . . . . . . . . . . . . . . . 1 . . . Explosive 12 | . . 10 2 . . . . . . . . . . . . . . . . . . . . . . Electromagnetic 1 | . . . . . . . . . . . . . . . . . . . . . . . . 1 . Slashing 12 | . . . . . . . . . . . . . . . . . . . . . . 12 . . . Robot Hit Streak 16 | 12 16 4 1 . . 5 8 9 . . . . . . . . . . . . . 10 . . . Robot Miss Streak 4 | 3 4 3 . . . . . . . . . . . . . . . . . . . 2 . . 3 Penetration Max 1 | . . . . . . . . . . . . . . . . . . . . . . 1 . . . Secondary Targets 1 | . 1 . . . . . . . . . . . . . . . . . . . . . . . . Max Gunslinging Chain 1 | . 1 . . . . . . . . . . . . . . . . . . . . . . . . Autonomous 36 | . . . . . . . . . . . . . . . . . . . . . . 12 4 4 16 Shots Hit Robots 372 | 35 124 6 6 . 19 20 14 6 7 13 10 7 . . 11 . . . . 19 10 35 4 9 17 Core Hits 168 | 11 46 6 4 . 9 8 4 2 1 6 8 3 . . 4 . . . . 5 5 21 3 8 14 Critical Kills 2 | . 1 . 1 . . . . . . . . . . . . . . . . . . . . . . Critical Parts Destroyed . | . . . . . . . . . . . . . . . . . . . . . . . . . . Critical Strikes 10 | . 1 . 1 . . . . . . . . . . . . . . . . 2 2 . . . 4 Destroy 1 | . 1 . . . . . . . . . . . . . . . . . . . . . . . . Smash 1 | . . . 1 . . . . . . . . . . . . . . . . . . . . . . Melee Attacks 423 | . . 7 13 . 43 22 14 5 12 27 13 17 . . 28 . 2 . 2 43 33 53 20 25 44 Impact 20 | . . 7 13 . . . . . . . . . . . . . . . . . . . . . . Slashing 400 | . . . . . 43 19 14 5 12 27 13 17 . . 28 . 2 . 2 43 33 53 20 25 44 Piercing . | . . . . . . . . . . . . . . . . . . . . . . . . . . Sneak Attacks 44 | . . . 4 . 2 4 . 4 1 2 . . . . 3 . . . . 4 3 5 1 5 6 Combat Hostiles 2 | . . . . . . . . . . . . . . . . . . . . . . 2 . . . Follow-up Attacks 4 | . . . . . 1 . . . . . 1 2 . . . . . . . . . . . . . Damage Inflicted 17155 | 337 1261 515 285 . 914 540 442 469 293 711 408 262 . . 674 . . . . 1097 679 3445 662 1235 2926 Guns 2024 | 337 1261 44 . . . . . . . . . . . . . . . . . . . 382 . . . Cannons 3118 | . . . . . . . . . . . . . . . . . . . . . . 1064 327 350 1377 Explosions 677 | . . 471 26 . . . . . . . . . . . . . . . . . . . . . 180 Melee 11284 | . . . 259 . 914 540 442 469 287 711 408 262 . . 674 . . . . 1097 679 1990 298 885 1369 Ramming 52 | . . . . . . . . . 6 . . . . . . . . . . . . 9 37 . . Kinetic 1682 | 337 1261 44 . . . . . . . . . . . . . . . . . . . 40 . . . Thermal 180 | . . . . . . . . . . . . . . . . . . . . . . . . . 180 Explosive 497 | . . 471 26 . . . . . . . . . . . . . . . . . . . . . . Electromagnetic . | . . . . . . . . . . . . . . . . . . . . . . . . . . Impact 259 | . . . 259 . . . . . . . . . . . . . . . . . . . . . . Slashing 11367 | . . . . . 914 540 442 469 287 711 408 262 . . 674 . . . . 1097 679 2332 298 885 1369 Piercing . | . . . . . . . . . . . . . . . . . . . . . . . . . . Phasic 3118 | . . . . . . . . . . . . . . . . . . . . . . 1064 327 350 1377 Highest Corruption 4 | . 4 4 4 . . . 1 1 1 2 2 2 . . 3 3 3 3 3 2 3 3 . . . Average Corruption 2 | . 3 4 4 . . . 1 1 1 2 2 1 . . 3 3 3 3 3 1 2 3 . . . Corruption Purged 2 | . . . . . . . . . . . . 2 . . . . . . . . . . . . . Corruption Blocked . | . . . . . . . . . . . . . . . . . . . . . . . . . . Effects 139 | . 29 22 26 . . . 7 3 3 10 6 1 . . 7 1 3 . 2 3 7 9 . . . Message Errors 37 | . 5 7 5 . . . 3 . 1 2 3 . . . 3 . 1 . 1 1 2 3 . . . Matter Fused 32 | . 4 6 9 . . . 2 2 1 1 1 . . . 2 . 1 . . . 2 1 . . . Heat Flow Errors 17 | . 1 3 5 . . . . . . 3 1 1 . . . 1 . . 1 . 1 . . . . Energy Discharges 20 | . 6 3 1 . . . 1 1 1 . 1 . . . 1 . 1 . . 1 2 1 . . . Parts Rejected 2 | . . . . . . . . . . 1 . . . . 1 . . . . . . . . . . Data Loss (minor) 24 | . 8 3 5 . . . 1 . . 3 . . . . . . . . . 1 . 3 . . . Data Loss (major) 3 | . 2 . 1 . . . . . . . . . . . . . . . . . . . . . . Misfires 1 | . 1 . . . . . . . . . . . . . . . . . . . . . . . . Weapon Failures 3 | . 2 . . . . . . . . . . . . . . . . . . . . 1 . . . Overload Shots . | . . . . . . . . . . . . . . . . . . . . . . . . . . Overflow Damage 2006 | . . 21 67 . 158 25 . 158 12 50 . 16 . . 174 . . . . 165 43 352 120 157 488 Projectiles 335 | . . . . . . . . . . . . . . . . . . . . . . 163 . . 172 Explosions 21 | . . 21 . . . . . . . . . . . . . . . . . . . . . . . Melee 1650 | . . . 67 . 158 25 . 158 12 50 . 16 . . 174 . . . . 165 43 189 120 157 316 Knockbacks 2 | . . . 2 . . . . . . . . . . . . . . . . . . . . . . Impact 2 | . . . 2 . . . . . . . . . . . . . . . . . . . . . . Kinetic . | . . . . . . . . . . . . . . . . . . . . . . . . . . Secondary . | . . . . . . . . . . . . . . . . . . . . . . . . . . Self-Inflicted Damage . | . . . . . . . . . . . . . . . . . . . . . . . . . . Shots . | . . . . . . . . . . . . . . . . . . . . . . . . . . Rammed 1 | . . . . . . . . . 1 . . . . . . . . . . . . . . . . Targets Rammed 3 | . . . . . . . . . 1 . . . . . . . . . . . . 1 1 . . Kicked 2 | . . . . . . . . . . . . . . . . . . . . . . 1 1 . . Crushed . | . . . . . . . . . . . . . . . . . . . . . . . . . . Highest Temperature 276 | . 268 235 234 . 104 19 . . 2 261 276 199 59 . . 254 13 . 153 160 217 216 . 15 . Average Temperature 60 | . 36 107 76 . 47 10 . . 1 53 171 45 10 . . 155 6 . 83 46 72 58 . 7 . Received Heat Transfer 1512 | . 279 39 18 . 81 168 81 45 33 18 . . . . . . 39 . 9 66 . 366 27 171 72 Effects 1 | . . . . . . . . . . . 1 . . . . . . . . . . . . . . Energy Bleed 1 | . . . . . . . . . . . 1 . . . . . . . . . . . . . . Siege Activations . | . . . . . . . . . . . . . . . . . . . . . . . . . . Martial Activations . | . . . . . . . . . . . . . . . . . . . . . . . . . . Shielding Activations . | . . . . . . . . . . . . . . . . . . . . . . . . . . Robots Disrupted 3 | . . . . . . . . . . . 1 . . . . . . . . . 1 1 . . . Combat Hostiles 2 | . . . . . . . . . . . 1 . . . . . . . . . . 1 . . . Robots Corrupted 1 | . . . 1 . . . . . . . . . . . . . . . . . . . . . . Combat Hostiles . | . . . . . . . . . . . . . . . . . . . . . . . . . . Parts Fried . | . . . . . . . . . . . . . . . . . . . . . . . . . . Impact Corruptions 3 | . . . 3 . . . . . . . . . . . . . . . . . . . . . . Robots Melted . | . . . . . . . . . . . . . . . . . . . . . . . . . . Combat Hostiles . | . . . . . . . . . . . . . . . . . . . . . . . . . . Parts Melted 1 | . . . . . . . . . . 1 . . . . . . . . . . . . . . . Heat Transferred 100 | . . . . . . . . . . . . . . . . . . . . . . . . . 100 Parts Sabotaged . | . . . . . . . . . . . . . . . . . . . . . . . . . . Parts Stolen . | . . . . . . . . . . . . . . . . . . . . . . . . . . Parts Stripped . | . . . . . . . . . . . . . . . . . . . . . . . . . . Power Chain Reactions . | . . . . . . . . . . . . . . . . . . . . . . . . . . Alert | -11 -10 -10 -8 -8 -6 -6 -6 -6 -6 -5 -5 -5 -5 -4 -4 -4 -4 -4 -3 -3 -3 -3 -2 -2 -1 ------- Run | Yrd Mat Sub Rec Scr Fac Ext Cet Arc Hub Fac Upp Upp War Pro Fac Upp Upp Zhi Pro Res Qua Sec Res Tes Acc Maximum Alert Level 5 | . . . . . . . . . 2 1 . . . . . . . . . . . 5 5 3 2 Low Security (%) 74 | 100 100 . 100 . 100 100 100 100 43 98 . . . . 100 . . . . 100 100 19 . . 8 Level 1 10 | . . . . . . . . . 51 1 . . . . . . . . . . . 19 . . 78 Level 2 1 | . . . . . . . . . 5 . . . . . . . . . . . . . . . 13 Level 3 5 | . . . . . . . . . . . . . . . . . . . . . . . . 100 . Level 4 . | . . . . . . . . . . . . . . . . . . . . . . . 2 . . Level 5 3 | . . . . . . . . . . . . . . . . . . . . . . . 97 . . High Security . | . . . . . . . . . . . . . . . . . . . . . . . . . . Max Security 3 | . . . . . . . . . . . . . . . . . . . . . . 61 . . . Peak Influence 3002 | 10 137 . 78 . 121 67 118 165 498 240 . . . . 32 . . . . 128 105 3002 1677 974 440 Initial 1677 | . . . . . . 56 16 31 53 240 . . . . 6 . . . . 20 39 11 1677 897 440 Average 265 | . 39 . 15 . 50 36 32 66 253 54 . . . . 10 . . . . 55 36 1474 1627 880 319 Influence Increases 7437 | 35 549 . 235 . 361 269 248 204 683 461 187 85 27 30 142 . 150 . 30 449 291 1953 89 324 635 Destroy 0b10 Robot/C 2880 | . 320 . 20 . 140 100 140 80 240 220 140 40 20 . . . . . . 40 40 920 20 100 300 Destroy 0b10 Robot/NC 330 | 35 55 . 15 . 15 15 10 20 10 20 5 . . . 25 . . . . 15 15 25 5 20 25 Destroy Leader 436 | . 54 . . . 22 12 . . 64 32 10 . . . 4 . . . . 24 2 102 10 20 80 Allied During Kill 791 | . . . . . . 10 69 100 217 48 32 . 7 . . . . . . . . 210 . . 98 Successful Hack 530 | . . . 35 . 25 9 . . 15 77 . . . . 29 . . . . 57 104 139 . 40 . Select Force Hacks 340 | . 30 . 150 . 30 . . . 100 . . . . . . . . . . 30 . . . . . Disable Machine 480 | . 15 . . . 15 15 . . 15 30 . . . . . . . . . 15 60 210 . 75 30 Destroy Structure 540 | . . . 15 . 9 3 29 4 22 34 . . . . 24 . . . . 28 40 212 39 24 57 Partial Spotted 375 | . 15 . . . 60 15 . . . . . . . . 60 . . . . 45 . 135 15 . 30 Lose Combat Pursuer 735 | . 60 . . . 45 90 . . . . . 45 . 30 . . 150 . 30 195 30 . . 45 15 Influence Decreases 8632 | 35 432 117 235 . 246 353 201 127 348 938 143 87 82 20 152 . 40 110 . 409 340 230 1475 1185 1327 Entered New Map 3066 | . . 57 . . . 59 15 47 102 250 5 12 55 . 4 . . 110 . 10 31 10 1305 699 295 Time Decay 3647 | 35 402 50 225 . 185 170 146 80 206 263 118 75 . 20 148 . 30 . . 269 307 110 170 246 392 Lost Part 755 | . 30 10 10 . 61 47 . . . 10 . . 7 . . . . . . 60 . 90 . 90 340 Lost Ally 619 | . . . . . . 77 40 . 40 20 20 . 20 . . . 10 . . 70 2 20 . . 300 Purge Threat 545 | . . . . . . . . . . 395 . . . . . . . . . . . . . 150 . Squads Dispatched 83 | . 2 . . . 6 . . . 3 4 . . . . 4 . 1 . 1 13 6 25 3 9 6 Investigation 22 | . 1 . . . 3 . . . 2 3 . . . . 2 . . . . 10 . . . 1 . Extermination 13 | . . . . . 1 . . . 1 1 . . . . 1 . . . . . 3 1 1 1 3 Reinforcement 17 | . 1 . . . 2 . . . . . . . . . 1 . . . . 3 1 4 1 3 1 Assault 29 | . . . . . . . . . . . . . . . . . 1 . 1 . 2 20 1 4 . Garrison 1 | . . . . . . . . . . . . . . . . . . . . . . . . . 1 Intercept 1 | . . . . . . . . . . . . . . . . . . . . . . . . . 1 Searches Triggered . | . . . . . . . . . . . . . . . . . . . . . . . . . . Construction Impeded 1 | . . . . . . . . . . . . . . . . . . . . 1 . . . . . Haulers Reinforced 1 | . . . . . . . . . . . . . . . . . . . . 1 . . . . . Active Scanning Responses . | . . . . . . . . . . . . . . . . . . . . . . . . . . Cargo Convoy Interrupts . | . . . . . . . . . . . . . . . . . . . . . . . . . . Stealth | -11 -10 -10 -8 -8 -6 -6 -6 -6 -6 -5 -5 -5 -5 -4 -4 -4 -4 -4 -3 -3 -3 -3 -2 -2 -1 --------- Run | Yrd Mat Sub Rec Scr Fac Ext Cet Arc Hub Fac Upp Upp War Pro Fac Upp Upp Zhi Pro Res Qua Sec Res Tes Acc Distress Signals 15 | . 1 . . . . . . . 1 . . . 1 . . . . . . 8 . 2 . 1 1 Communications Jammed 53 | . . . . . . . . . . . . . . . . . . . . 10 8 35 . . . Distress Signals 53 | . . . . . . . . . . . . . . . . . . . . 10 8 35 . . . Times Spotted 498 | . 31 12 1 . 12 14 7 4 13 9 10 5 20 6 5 . 10 . 5 31 18 140 14 71 60 Peak Tracking Total 20 | . 5 6 1 . 4 7 5 2 3 4 5 3 20 4 3 . 10 . 5 9 10 12 4 14 10 Tactical Retreats 25 | . 2 . . . 2 2 . . . . . 3 . 1 . . 3 . 1 6 2 . . 2 1 Traps | -11 -10 -10 -8 -8 -6 -6 -6 -6 -6 -5 -5 -5 -5 -4 -4 -4 -4 -4 -3 -3 -3 -3 -2 -2 -1 ------- Run | Yrd Mat Sub Rec Scr Fac Ext Cet Arc Hub Fac Upp Upp War Pro Fac Upp Upp Zhi Pro Res Qua Sec Res Tes Acc Traps Triggered 16 | . 5 2 . . . 7 . . 1 . . . . . . . . . . . . . 1 . . Indirectly . | . . . . . . . . . . . . . . . . . . . . . . . . . . Trap Hack Attempts . | . . . . . . . . . . . . . . . . . . . . . . . . . . Triggered . | . . . . . . . . . . . . . . . . . . . . . . . . . . Disarmed 6 | . . . . . . . . . . 6 . . . . . . . . . . . . . . . Reprogrammed . | . . . . . . . . . . . . . . . . . . . . . . . . . . Reused . | . . . . . . . . . . . . . . . . . . . . . . . . . . Traps Extracted . | . . . . . . . . . . . . . . . . . . . . . . . . . . Installed . | . . . . . . . . . . . . . . . . . . . . . . . . . . Triggered . | . . . . . . . . . . . . . . . . . . . . . . . . . . Objects Rigged 1 | . . . . . . . . . . 1 . . . . . . . . . . . . . . . Machines | -11 -10 -10 -8 -8 -6 -6 -6 -6 -6 -5 -5 -5 -5 -4 -4 -4 -4 -4 -3 -3 -3 -3 -2 -2 -1 ---------- Run | Yrd Mat Sub Rec Scr Fac Ext Cet Arc Hub Fac Upp Upp War Pro Fac Upp Upp Zhi Pro Res Qua Sec Res Tes Acc Machines Disabled 38 | . 1 1 . . 1 1 . . 1 2 . . 1 . . . . . . 1 4 18 . 5 2 Max in Single Turn 1 | . 1 1 . . 1 . . . . 1 . . 1 . . . . . . 1 1 1 . 1 1 Garrison Access 4 | . . . . . 1 . . . . 1 . . . . 1 . . . . . 1 . . . . Network Hub 3 | . . . . . . . . . 3 . . . . . . . . . . . . . . . . Energy Cycler 3 | . . . . . . 2 . . . . . . . . . . . . . . . . . . 1 Machines Repaired . | . . . . . . . . . . . . . . . . . . . . . . . . . . Machines Dismantled 3 | . . . . . . . . . . . . . 1 . . . . . . . 2 . . . . Machines Sabotaged 2 | . . . . . . . . . 2 . . . . . . . . . . . . . . . . Overloaded Fab Kills . | . . . . . . . . . . . . . . . . . . . . . . . . . . Hacking | -11 -10 -10 -8 -8 -6 -6 -6 -6 -6 -5 -5 -5 -5 -4 -4 -4 -4 -4 -3 -3 -3 -3 -2 -2 -1 --------- Run | Yrd Mat Sub Rec Scr Fac Ext Cet Arc Hub Fac Upp Upp War Pro Fac Upp Upp Zhi Pro Res Qua Sec Res Tes Acc Machines Accessed 120 | . 6 1 10 4 12 6 . . 5 13 . . 3 . 8 1 . 4 . 14 17 8 1 4 3 Terminals 72 | . 5 . 5 . 6 6 . . 5 8 . . . . 5 . . . . 7 13 7 1 3 1 Fabricators 5 | . . . . . 2 . . . . 1 . . . . . . . . . 2 . . . . . Repair Stations 2 | . . . . . . . . . . . . . . . . . . . . . 1 . . 1 . Recycling Units 16 | . 1 . 5 . 2 . . . . 3 . . . . 2 . . . . 3 . . . . . Scanalyzers 5 | . . . . . 1 . . . . . . . . . . . . . . 1 2 1 . . . Garrison Access 7 | . . . . . 1 . . . . 1 . . . . 1 . . . . 1 1 . . . 2 Total Hacks 417 | . 15 1 27 9 24 13 . . 13 93 . . 4 . 36 1 . 17 . 43 58 36 2 16 9 Successful 244 | . 11 1 21 9 9 5 . . 5 62 . . 4 . 15 1 . 17 . 24 33 20 . 7 . Failed 171 | . 4 . 6 . 15 8 . . 8 30 . . . . 21 . . . . 19 24 16 2 9 9 Catastrophic 34 | . . . . . 5 . . . 2 8 . . . . 5 . . . . 2 4 4 . . 4 Database Lockouts 2 | . . . . . . . . . . 1 . . . . . . . . . . 1 . . . . Manual 240 | . 12 . 20 . 14 10 1 . 13 57 . . . . 19 . . . . 23 33 22 2 10 4 Terminals 304 | . 11 . 17 . 13 13 . . 13 79 . . . . 27 . . . . 26 50 34 2 14 5 Fabricators 14 | . . . . . 3 . . . . 3 . . . . . . . . . 8 . . . . . Repair Stations 6 | . . . . . . . . . . . . . . . . . . . . . 4 . . 2 . Recycling Units 41 | . 4 . 10 . 5 . . . . 9 . . . . 6 . . . . 7 . . . . . Scanalyzers 6 | . . . . . 1 . . . . . . . . . . . . . . 1 2 2 . . . Garrison Access 14 | . . . . . 2 . . . . 2 . . . . 3 . . . . 1 2 . . . 4 Terminal Hacks 122 | . 2 1 2 9 4 2 . . 1 32 . . 4 . 5 1 . 17 . 8 20 11 . 3 . Record 23 | . . . . 7 . . . . . . . . 2 . . . . 5 . . 8 1 . . . Part Schematic 9 | . . . . . . . . . . 4 . . . . . . . 4 . 1 . . . . . Robot Analysis 4 | . . . . . . . . . . . . . . . . . . 4 . . . . . . . Prototype ID Bank 8 | . . . 1 . . . . . . 1 . . . . . . . 4 . 1 . 1 . . . Open Door 7 | . . . . 1 1 1 . . . . . . 2 . . 1 . . . . 1 . . . . Level Access Points 3 | . . . . . . . . . . 1 . . . . . . . . . . . 1 . 1 . Branch Access Points 3 | . . . . . 1 . . . . 1 . . . . 1 . . . . . . . . . . Machine Index 1 | . . . . . . . . . . . . . . . . . . . . . 1 . . . . Terminal Index 7 | . 1 . 1 . 1 . . . 1 1 . . . . 1 . . . . . 1 . . . . Fabricator Index 2 | . . . . . . . . . . 1 . . . . . . . . . 1 . . . . . Recycling Unit Index 4 | . . . . . . . . . . 1 . . . . 1 . . . . 1 1 . . . . Garrison Index 1 | . . . . . . . . . . . . . . . . . . . . . 1 . . . . Alert Level 9 | . . . . . . . . . . 5 . . . . . . . . . 1 1 1 . 1 . Unreport Threat 4 | . . . . . . . . . . 3 . . . . . . . . . . . . . 1 . Locate Traps 1 | . . . . . . . . . . . . . . . 1 . . . . . . . . . . Disarm Traps 2 | . . . . . . . . . . 2 . . . . . . . . . . . . . . . Dispatch Records 6 | . . . . . . . . . . 2 . . . . . . . . . . 2 2 . . . Maintenance Status 2 | . . . . . . . . . . 2 . . . . . . . . . . . . . . . Security Status 2 | . . . . . . . . . . 2 . . . . . . . . . . . . . . . Patrol Status 1 | . . . . . . . . . . 1 . . . . . . . . . . . . . . . Recall Extermination 2 | . . . . . . . . . . 1 . . . . . . . . . . 1 . . . . Recall Reinforcements 1 | . . . . . . . . . . . . . . . . . . . . . . 1 . . . Registered Components 3 | . . . . . . . . . . 1 . . . . 1 . . . . 1 . . . . . Registered Prototypes 2 | . . . . . . . . . . 1 . . . . . . . . . . 1 . . . . Zone Layout 12 | . 1 . . . 1 1 . . . 2 . . . . . . . . . 2 2 3 . . . Proto ID Catalog 2 | . . 1 . 1 . . . . . . . . . . . . . . . . . . . . . Activate Exoskeleton 1 | . . . . . . . . . . . . . . . . . . . . . . 1 . . . Fabricator Hacks 7 | . . . . . . . . . . 2 . . . . . . . . . 5 . . . . . Network Status 1 | . . . . . . . . . . 1 . . . . . . . . . . . . . . . Load Schematic 2 | . . . . . . . . . . . . . . . . . . . . 2 . . . . . Build 4 | . . . . . . . . . . 1 . . . . . . . . . 3 . . . . . Repair Station Hacks 1 | . . . . . . . . . . . . . . . . . . . . . 1 . . . . Scan Component 1 | . . . . . . . . . . . . . . . . . . . . . 1 . . . . Recycling Unit Hacks 18 | . 2 . 5 . 1 . . . . 5 . . . . 2 . . . . 3 . . . . . Report Inventory 15 | . 1 . 5 . 1 . . . . 3 . . . . 2 . . . . 3 . . . . . Retrieve Components 3 | . 1 . . . . . . . . 2 . . . . . . . . . . . . . . . Scanalyzer 1 | . . . . . . . . . . . . . . . . . . . . . 1 . . . . Insert Component 1 | . . . . . . . . . . . . . . . . . . . . . 1 . . . . Garrison Access Hacks 3 | . . . . . 1 . . . . 1 . . . . 1 . . . . . . . . . . Seal Access 3 | . . . . . 1 . . . . 1 . . . . 1 . . . . . . . . . . Unauthorized Hacks 92 | . 7 . 14 . 3 3 . . 4 22 . . . . 7 . . . . 8 11 9 . 4 . Terminals 70 | . 6 . 9 . 2 3 . . 4 17 . . . . 5 . . . . 3 10 8 . 3 . Track 9 | . . . . . 1 . . . . 4 . . . . . . . . . . 1 3 . . . Assimilate 3 | . . . . . . . . . . . . . . . 1 . . . . 1 1 . . . . Botnet 28 | . 1 . 4 . 1 3 . . 2 3 . . . . 2 . . . . 2 2 5 . 3 . Detonate 1 | . . . . . . . . . . 1 . . . . . . . . . . . . . . . Operators 2 | . . . . . . . . . . 1 . . . . . . . . . . 1 . . . . Skim 25 | . 5 . 5 . . . . . . 8 . . . . 2 . . . . . 5 . . . . Sabotage 2 | . . . . . . . . . 2 . . . . . . . . . . . . . . . . Fabricators 1 | . . . . . . . . . . 1 . . . . . . . . . . . . . . . Report 1 | . . . . . . . . . . 1 . . . . . . . . . . . . . . . Repair Stations 1 | . . . . . . . . . . . . . . . . . . . . . . . . 1 . Patch 1 | . . . . . . . . . . . . . . . . . . . . . . . . 1 . Recycling Units 14 | . 1 . 5 . . . . . . 3 . . . . 2 . . . . 3 . . . . . Tunnel 6 | . 1 . 5 . . . . . . . . . . . . . . . . . . . . . . Fedlink 8 | . . . . . . . . . . 3 . . . . 2 . . . . 3 . . . . . Scanalyzers 4 | . . . . . 1 . . . . . . . . . . . . . . 1 1 1 . . . Researchers 2 | . . . . . . . . . . . . . . . . . . . . . 1 1 . . . Extract 2 | . . . . . 1 . . . . . . . . . . . . . . 1 . . . . . Garrison Access 2 | . . . . . . . . . . 1 . . . . . . . . . 1 . . . . . Decoy 1 | . . . . . . . . . . 1 . . . . . . . . . . . . . . . Reprogram 1 | . . . . . . . . . . . . . . . . . . . . 1 . . . . . Data Cores Recovered 3 | . . . . . . 1 . . . 1 . . . . . . . . . . . 1 . . . Used 1 | . . . . . . . . . . . . . . . . . . . . . . 1 . . . Hacking Detections 71 | . 4 . 5 . 9 5 . . 4 8 . . . . 6 . . . . 6 12 5 1 3 3 Full Trace Events 6 | . . . . . 2 . . . . . . . . . . . . . . 4 . . . . . Feedback Events 1 | . . . . . . . . . . . . . . . . . . . . 1 . . . . . Corruption 1 | . . . . . . . . . . . . . . . . . . . . 1 . . . . . Feedback Blocked . | . . . . . . . . . . . . . . . . . . . . . . . . . . Robot Schematics Acquired 6 | . . . . . . . . . . . . . . . . . . . . . 1 5 . . . Robots Built 2 | . . . . . . . . . . 2 . . . . . . . . . . . . . . . Authchips . | . . . . . . . . . . . . . . . . . . . . . . . . . . Time 152 | . . . . . . . . . . 152 . . . . . . . . . . . . . . . Total Robot Build Rating 10 | . . . . . . . . . . 10 . . . . . . . . . . . . . . . Part Schematics Acquired 30 | . . . . . 4 . . . . 4 . . . . . . . 4 . 4 2 12 . . . Parts Built 5 | . . . . . . . . . . . . . . . . . . . . 5 . . . . . Authchips . | . . . . . . . . . . . . . . . . . . . . . . . . . . Time 148 | . . . . . . . . . . . . . . . . . . . . 148 . . . . . Total Part Build Rating 35 | . . . . . . . . . . . . . . . . . . . . 35 . . . . . Parts Repaired . | . . . . . . . . . . . . . . . . . . . . . . . . . . Time . | . . . . . . . . . . . . . . . . . . . . . . . . . . Parts Recycled . | . . . . . . . . . . . . . . . . . . . . . . . . . . Recycled Matter . | . . . . . . . . . . . . . . . . . . . . . . . . . . Retrieved Matter . | . . . . . . . . . . . . . . . . . . . . . . . . . . Retrieved Components 15 | . 10 . . . . . . . . 5 . . . . . . . . . . . . . . . Parts Scanalyzed . | . . . . . . . . . . . . . . . . . . . . . . . . . . Part Schematics Acquired . | . . . . . . . . . . . . . . . . . . . . . . . . . . Parts Damaged . | . . . . . . . . . . . . . . . . . . . . . . . . . . Bothacking | -11 -10 -10 -8 -8 -6 -6 -6 -6 -6 -5 -5 -5 -5 -4 -4 -4 -4 -4 -3 -3 -3 -3 -2 -2 -1 ------------ Run | Yrd Mat Sub Rec Scr Fac Ext Cet Arc Hub Fac Upp Upp War Pro Fac Upp Upp Zhi Pro Res Qua Sec Res Tes Acc Used RIF Installer . | . . . . . . . . . . . . . . . . . . . . . . . . . . Robots Hacked 1 | . . . . . . . 1 . . . . . . . . . . . . . . . . . . Non-combat . | . . . . . . . . . . . . . . . . . . . . . . . . . . Combat 1 | . . . . . . . 1 . . . . . . . . . . . . . . . . . . Robot Hacks Applied 1 | . . . . . . . 1 . . . . . . . . . . . . . . . . . . parse_system 1 | . . . . . . . 1 . . . . . . . . . . . . . . . . . . Relay Couplers Released 1 | . . . . . . . . . . . . . . . . . . . . . 1 . . . . Machine Destruction 1 | . . . . . . . . . . . . . . . . . . . . . 1 . . . . Fabnet Peak Effective % . | . . . . . . . . . . . . . . . . . . . . . . . . . . Robots Rewired 15 | . . . . . . 6 1 . . 1 1 . 5 . . . . . . . 1 . . . . Allies Hacked . | . . . . . . . . . . . . . . . . . . . . . . . . . . Hacks Repelled . | . . . . . . . . . . . . . . . . . . . . . . . . . . Allies | -11 -10 -10 -8 -8 -6 -6 -6 -6 -6 -5 -5 -5 -5 -4 -4 -4 -4 -4 -3 -3 -3 -3 -2 -2 -1 -------- Run | Yrd Mat Sub Rec Scr Fac Ext Cet Arc Hub Fac Upp Upp War Pro Fac Upp Upp Zhi Pro Res Qua Sec Res Tes Acc Total Allies 46 | . . . . . . 8 6 . . 3 1 . 5 . 1 . . . . 4 2 1 . . 15 Largest Group 8 | . . . . . . 4 5 4 4 3 2 . 5 . 1 1 1 . . 4 1 1 . . 8 Highest-Rated Group 1204 | . . . . . . 198 480 356 348 214 130 . 223 . 26 26 26 . . 186 26 1204 . . 116 Highest-Rated Ally 1204 | . . . . . . 159 159 96 96 96 89 . 49 . 26 26 26 . . 47 26 1204 . . 15 Total Orders 1 | . . . . . . . . . . . . . . . . . . . . . 1 . . . . FOLLOW 1 | . . . . . . . . . . . . . . . . . . . . . 1 . . . . Ally Attacks 433 | . . . . . . 30 47 30 37 22 8 . 4 . . . . . . 19 . 102 . . 134 Total Damage 19782 | . . . . . . 565 2439 1112 1326 810 137 . 145 . . . . . . 558 . 9989 . . 2701 Kills 84 | . . . . . . 2 7 4 14 9 2 . 1 . . . . . . 1 . 38 . . 6 Allies Corrupted 4 | . . . . . . . . . . . . . . . . . . . . . 1 . . . 3 Allies Melted . | . . . . . . . . . . . . . . . . . . . . . . . . . . Intel | -11 -10 -10 -8 -8 -6 -6 -6 -6 -6 -5 -5 -5 -5 -4 -4 -4 -4 -4 -3 -3 -3 -3 -2 -2 -1 ------- Run | Yrd Mat Sub Rec Scr Fac Ext Cet Arc Hub Fac Upp Upp War Pro Fac Upp Upp Zhi Pro Res Qua Sec Res Tes Acc Active Infowar (turns) 11526 | . 95 958 831 1543 418 372 567 168 422 631 284 255 424 126 383 82 129 46 74 652 722 627 345 528 844 Optics 8098 | . . . . . 417 372 567 168 422 631 284 255 424 126 383 82 129 46 74 652 722 627 345 528 844 Sensors 7074 | . . . . 1404 188 239 29 . . 626 284 255 424 112 361 82 129 46 51 468 722 582 345 506 221 Structural 6054 | . 95 958 831 139 324 194 43 . . 630 284 210 207 . 278 82 129 44 74 652 719 161 . . . Cloaking 564 | . . . . . . . . . . . . . . . . . . . . 18 310 236 . . . Jamming 1010 | . . . . . . . . . . . . . . 1 73 . . 26 56 114 447 293 . . . Robot Analysis Total 4 | . . . . . . . . . . . . . . . . . . 4 . . . . . . . Derelict Logs Recovered 11 | . . . . 5 . . . . . . 1 2 . 2 . . 1 . . . . . . . . Drone Launches . | . . . . . . . . . . . . . . . . . . . . . . . . . . Drone Recoveries . | . . . . . . . . . . . . . . . . . . . . . . . . . . Exploration | -11 -10 -10 -8 -8 -6 -6 -6 -6 -6 -5 -5 -5 -5 -4 -4 -4 -4 -4 -3 -3 -3 -3 -2 -2 -1 ------------- Run | Yrd Mat Sub Rec Scr Fac Ext Cet Arc Hub Fac Upp Upp War Pro Fac Upp Upp Zhi Pro Res Qua Sec Res Tes Acc Turns Passed 14730 | 309 1437 958 1262 2576 431 372 567 168 422 631 284 255 424 126 383 82 129 46 74 652 722 627 345 528 920 Spaces Moved 18213 | 138 654 781 858 2210 899 601 227 79 262 1103 574 694 853 351 839 227 263 151 271 1490 1861 1249 374 498 706 Core 98 | 2 . . 5 87 . . . . . . . . . . . . . . . . . . . . 4 Treads 1260 | 136 510 . 136 . . . 180 79 219 . . . . . . . . . . . . . . . . Legs 858 | . . . . . . . . . . . . . . . . . . . . . . 78 227 215 338 Wheels 3896 | . 144 781 717 2123 5 . . . . . . . . . . . . . . . . . . . 126 Hover . | . . . . . . . . . . . . . . . . . . . . . . . . . . Flight 11704 | . . . . . 894 601 47 . 43 1103 574 694 853 351 839 227 263 151 271 1490 1861 1079 . 182 181 Fastest Speed 6 | 50 110 110 115 50 23 26 32 160 27 24 25 25 20 26 26 26 26 26 20 20 13 6 110 29 44 Average Speed 60 | 158 168 111 139 113 28 29 135 160 139 25 25 25 24 26 27 26 26 26 24 23 19 29 111 99 95 Slowest Speed 550 | 160 240 120 550 115 115 109 160 160 160 99 25 25 96 26 162 26 26 26 26 27 20 170 180 120 200 Overloaded Moves 484 | . . . . . . 25 13 . . . . . 15 . . . . . 48 . 49 334 . . . Propulsion Burnouts . | . . . . . . . . . . . . . . . . . . . . . . . . . . Robots Hopped 54 | . . . . . 5 9 . . . 8 . . 2 . 10 1 1 . . 5 5 6 . . 2 Potential Cave-ins 3 | . . . . . . . . . . . . . . . . . . . . . . 3 . . . Cave-ins Triggered . | . . . . . . . . . . . . . . . . . . . . . . . . . . Teleports 91 | . . . . . . . . . . . . . . . . . . . . . . 36 10 16 29 Spacefolds 30 | . . . . . . . . . . . . . . . . . . . . . . 2 . 9 19 Microwarps 28 | . . . . . . . . . . . . . . . . . . . . . . 10 9 9 . Exploration Rate (%) 58 | 9 96 55 98 83 30 76 60 82 38 32 71 80 88 57 29 46 48 63 56 54 98 79 15 64 22 Regions Visited 25 Branch Regions 18 Pre-discovered Areas 17 | . 4 1 6 2 . . . . . 1 . . . . . . . 3 . . . . . . . Known Exits Taken 23 | . 1 . 1 1 1 1 1 1 1 1 1 1 1 1 1 1 1 1 1 1 1 1 1 1 . Unknown Exits Taken 2 | 1 . 1 . . . . . . . . . . . . . . . . . . . . . . . Scrap Searched 26 | . . 4 . 11 . . . . . . 1 3 . 2 . 1 2 . 2 . . . . . . Spaces Dug 133 | . . 2 4 . 9 1 . . 4 5 1 1 . . 12 . 2 . 2 14 20 20 13 8 15 Terrain Destroyed 224 | . . 76 15 . 9 1 . . 4 5 1 1 . . 12 . 2 . 2 14 20 21 13 8 20 Melee 122 | . . 2 4 . 9 1 . . 4 5 1 1 . . 12 . 2 . 2 14 20 9 13 8 15 Projectile 12 | . . . . . . . . . . . . . . . . . . . . . . 12 . . . AOE 90 | . . 74 11 . . . . . . . . . . . . . . . . . . . . . 5 Terrain Rammed . | . . . . . . . . . . . . . . . . . . . . . . . . . . Walls Destroyed . | . . . . . . . . . . . . . . . . . . . . . . . . . . Machines Disabled . | . . . . . . . . . . . . . . . . . . . . . . . . . . Actions | -11 -10 -10 -8 -8 -6 -6 -6 -6 -6 -5 -5 -5 -5 -4 -4 -4 -4 -4 -3 -3 -3 -3 -2 -2 -1 --------- Run | Yrd Mat Sub Rec Scr Fac Ext Cet Arc Hub Fac Upp Upp War Pro Fac Upp Upp Zhi Pro Res Qua Sec Res Tes Acc Total 20754 | 175 809 833 893 2300 1007 755 461 113 301 1401 699 753 1055 385 935 248 318 154 274 1728 2146 1353 291 496 871 Wait 1606 | . 24 9 9 . 31 26 207 23 12 234 108 39 155 29 62 21 53 . . 168 213 6 23 42 112 Move 17745 | 137 653 780 857 2209 889 582 226 78 261 1088 573 693 849 350 818 224 260 150 270 1479 1850 1156 236 414 663 Hop 50 | . . . . . 4 9 . . . 6 . . 1 . 10 1 1 . . 5 5 6 . . 2 Pick Up 113 | 4 9 13 2 31 8 3 . 2 1 8 1 2 1 . 4 1 . . . 5 3 11 . . 4 Fast Attach 129 | 6 4 . 1 8 5 1 5 1 6 4 1 . 6 2 2 . 1 1 . 11 2 25 3 5 29 Attach 67 | . 5 2 . . 14 8 2 . . 3 . 1 . 1 4 . . . 1 4 1 11 2 2 6 Detach 64 | . 2 . . 10 4 5 2 1 . 1 . 1 2 3 1 . . . 1 1 1 21 1 5 2 Swap 90 | . 2 3 8 2 5 1 2 1 2 13 . 1 4 . 4 . . 3 . 5 7 21 1 2 3 Drop 125 | . 1 6 2 40 5 1 . 1 6 9 3 1 8 . 2 1 1 . . 8 5 21 . . 4 Fire 182 | 28 109 13 1 . . 4 3 1 . . . . . . . . . . . . . 20 . 1 2 Melee 418 | . . 7 13 . 42 22 14 5 12 27 12 15 . . 28 . 2 . 2 42 33 53 20 25 44 Ram . | . . . . . . . . . . . . . . . . . . . . . . . . . . Kick 1 | . . . . . . . . . . . . . . . . . . . . . . 1 . . . Crush 1 | . . . . . . . . . 1 . . . . . . . . . . . . . . . . Escape Stasis 78 | . . . . . . 72 . . . . . . . . . . . . . . . 1 5 . . Rewire 55 | . . . . . . 21 . . . 8 1 . 21 . . . . . . . 4 . . . . Trap . | . . . . . . . . . . . . . . . . . . . . . . . . . . Miscellaneous 30 | . . . . . . . . . . . . . 8 . . . . . . . 22 . . . . Route ------- -11/Scrapyard -10/Materials (discovered 5 exits: *Mat x3 / [*Min] / *Sub) -10/Subcaves (discovered 3 exits: *Mat x2 / *Rec) -8/Recycling (discovered 2 exits: *Fac / *Scr) -8/Scraptown (discovered 2 exits: *Fac x2) -6/Factory (discovered 5 exits: Fac / Low x2 / *Ext x2) -6/Extension (discovered 2 exits: *Fac / *Cet) -6/Cetus (discovered 2 exits: *Fac / *Arc) -6/Archives (discovered 2 exits: *Fac / *Hub) -6/Hub_04(d) -5/Factory (discovered 6 exits: *Fac x4 / *Upp x2) -5/Upper Caves -5/Upper Caves (discovered 2 exits: Fac / *War) -5/Warlord -4/Proximity Caves -4/Factory (discovered 2 exits: *Upp x2) -4/Upper Caves -4/Upper Caves -4/Zhirov -3/Proximity Caves -3/Research (discovered 5 exits: *Res x3 / *Qua x2) -3/Quarantine (discovered 2 exits: *Sec / *Frg) -3/Section 7 -2/Research -2/Testing -1/Access (discovered 1 exit: *Com) History --------- Turn | Location | Event 17 | -11/Scrapyard | Discovered new exit (range 13) 310 | -11/Scrapyard | Entered Materials 311 | -10/Materials | Build established: Mutant 544 | -10/Materials | Discovered new exit (range 3) 868 | -10/Materials | Discovered new exit (range 14) 906 | -10/Materials | Discovered new exit (range 12) 969 | -10/Materials | Learned location of Recycling (-8) 1045 | -10/Materials | Identified exit to Materials 1109 | -10/Materials | Identified exit to Subcaves 1109 | -10/Materials | Learned location of 2 exits from Materials 1163 | -10/Materials | Learned Storage trap positions 1243 | -10/Materials | Learned location of Subcaves (-10) 1268 | -10/Materials | Learned Storage emergency access door positions 1305 | -10/Materials | Learned location of Storage (-8) 1411 | -10/Materials | Learned Storage emergency access door positions 1545 | -10/Materials | Core integrity fell below 50% 1747 | -10/Materials | Entered Subcaves 1748 | -10/Subcaves | Identified exit to Materials 1865 | -10/Subcaves | Core integrity fell below 20% 2003 | -10/Subcaves | Shifting Twisted Machinery released Sub. Laser 2044 | -10/Subcaves | Shifting Twisted Machinery released Flamer 2050 | -10/Subcaves | Learned location of Zion (-7) 2050 | -10/Subcaves | Met a Zionite searching for "candidates" 2244 | -10/Subcaves | A swath of the cavern ceiling suddenly collapsed 2277 | -10/Subcaves | Discovered new exit (range 4) 2543 | -10/Subcaves | Visited 4L-MR0's lab 2559 | -10/Subcaves | Found Gun Armor 2705 | -10/Subcaves | Entered Recycling 2915 | -8/Recycling | Discovered new exit (range 6) 2935 | -8/Recycling | Scanned before Scraplab entrance 3555 | -8/Recycling | Learned location of Lower Caves (-7) 3589 | -8/Recycling | Learned Factory security intel 3613 | -8/Recycling | Identified exit to Scraptown 3625 | -8/Recycling | Learned location of 1 exit from Storage 3629 | -8/Recycling | Learned Storage security intel 3643 | -8/Recycling | Learned location of 1 exit from Storage 3953 | -8/Recycling | Entered Scraplab 3967 | -8/Recycling | Entered Scraptown 3967 | -8/Scraptown | System corruption cleaned by C-Scrubber 3968 | -8/Scraptown | Identified exit to Factory 4042 | -8/Scraptown | Heard Great Nut preacher, LISTEN AND RECITE! 4062 | -8/Scraptown | Scanned Subdweller tech in exchange for log data 4064 | -8/Scraptown | Learned location of Armory (-3) 4066 | -8/Scraptown | Learned Factory non-interactive machine intel 4068 | -8/Scraptown | Learned location of 1 exit from Research 4069 | -8/Scraptown | Learned Factory security intel 4264 | -8/Scraptown | Visited Symbiants 4287 | -8/Scraptown | Visited Red Mages 4321 | -8/Scraptown | Visited SPCMW 4345 | -8/Scraptown | Visited Bundlers 4887 | -8/Scraptown | Visited Assassins FH 4900 | -8/Scraptown | Visited Cave Peace 4907 | -8/Scraptown | Visited TADAMA 4925 | -8/Scraptown | Visited UFD Registry 4925 | -8/Scraptown | Registered with UFD as "Quantumbank" 5156 | -8/Scraptown | Delivered Scrap Shield to a Scientist 5209 | -8/Scraptown | Visited Scrapoid Research Area 5241 | -8/Scraptown | Visited Scrapoid Pod Storage 5246 | -8/Scraptown | Found Scrapoid Pod 5268 | -8/Scraptown | Visited Research Penetration Think Tank 5288 | -8/Scraptown | Visited DA-N13 Charitable Foundation 5292 | -8/Scraptown | Found DCF Scrap (29 items) 5461 | -8/Scraptown | Visited Abandonware Association 5476 | -8/Scraptown | Learned abandonware demo "KABOOM.EXE" 5476 | -8/Scraptown | Learned abandonware demo "MELTYB.EXE" 5504 | -8/Scraptown | Visited Science Guys 5546 | -8/Scraptown | Visited Sword Containment 5733 | -8/Scraptown | Visited LU-1G1's Boring Crew 5794 | -8/Scraptown | Visited Chapter 10 6470 | -8/Scraptown | Met Optimus 6470 | -8/Scraptown | Accepted into 0bPrime 6543 | -8/Scraptown | Entered Factory 6543 | -6/Factory | Evolved 8 slots: Power x1, Propulsion x3, Utility x4 6545 | -6/Factory | Loaded intel: 215 non-interactive machine locations 6811 | -6/Factory | Lost 4 parts (1p2n1u) 6839 | -6/Factory | Identified exit to Lower Caves 6839 | -6/Factory | Identified exit to Extension 6839 | -6/Factory | Discovered new exit (range 19) 6974 | -6/Factory | Entered Extension 7137 | -6/Extension | Spotted B-75 Beast 7140 | -6/Extension | Spotted B-75 Beast 7151 | -6/Extension | Rescued a captive Derelict 7179 | -6/Extension | Energy Cycler disabled 7200 | -6/Extension | Rescued A7 7288 | -6/Extension | Lost 3 allies 7306 | -6/Extension | Lost 4 parts (1p2n1u) 7337 | -6/Extension | Discovered new exit (range 10) 7338 | -6/Extension | Discovered new exit (range 6) 7339 | -6/Extension | Identified exit to Cetus 7346 | -6/Extension | Entered Cetus 7346 | -6/Cetus | Accompanied by 1 ally (A7) 7351 | -6/Cetus | Acquired a Cetus Manufacturing Module code from A7 7364 | -6/Cetus | Spotted Cetus Guard 7364 | -6/Cetus | Spotted Cetus Guard 7364 | -6/Cetus | Spotted Cetus Guard 7364 | -6/Cetus | Spotted Cetus Guard 7372 | -6/Cetus | Allies destroyed Cetus Guard 7378 | -6/Cetus | Allies destroyed Cetus Guard 7388 | -6/Cetus | Extracted ID and sensor layout for unrecognized location from A7's data core 7399 | -6/Cetus | Destroyed Cetus Guard 7400 | -6/Cetus | Core integrity fell below 50% 7431 | -6/Cetus | Destroyed Cetus Guard 7521 | -6/Cetus | Started Cetus Manufacturing Module 7546 | -6/Cetus | Manufactured an Enhanced Grunt 7571 | -6/Cetus | Manufactured an Enhanced Grunt 7596 | -6/Cetus | Manufactured an Enhanced Grunt 7621 | -6/Cetus | Manufactured an Enhanced Grunt 7646 | -6/Cetus | Manufactured an Enhanced Grunt 7702 | -6/Cetus | Discovered new exit (range 21) 7734 | -6/Cetus | Identified exit to Archives 7750 | -6/Cetus | Build established: Scavenger-Mutant 7769 | -6/Cetus | Spotted Cetus Guard 7769 | -6/Cetus | Spotted Cetus Guard 7769 | -6/Cetus | Spotted Cetus Guard 7769 | -6/Cetus | Spotted Cetus Guard 7790 | -6/Cetus | Allies destroyed Cetus Guard 7790 | -6/Cetus | Allies destroyed Cetus Guard 7802 | -6/Cetus | Discovered new exit (range 21) 7807 | -6/Cetus | Rewired Cetus Guard 7810 | -6/Cetus | Allies destroyed Cetus Guard 7836 | -6/Cetus | Met Revision 17 7913 | -6/Cetus | Entered Archives 7913 | -6/Archives | Accompanied by 4 allies 8032 | -6/Archives | Discovered new exit (range 19) 8039 | -6/Archives | Discovered new exit (range 17) 8078 | -6/Archives | Identified exit to Hub_04(d) 8081 | -6/Archives | Entered Hub_04(d) 8081 | -6/Hub_04(d) | Accompanied by 4 allies 8265 | -6/Hub_04(d) | Network Hub disabled 8430 | -6/Hub_04(d) | Discovered new exit (range 22) 8479 | -6/Hub_04(d) | Network Hub disabled 8482 | -6/Hub_04(d) | Identified exit to Factory 8483 | -6/Hub_04(d) | Network Hub disabled 8503 | -6/Hub_04(d) | Entered Factory 8503 | -5/Factory | Accompanied by 2 allies 8503 | -5/Factory | Evolved 2 slots: Utility x2 8514 | -5/Factory | Identified exit to Upper Caves 8548 | -5/Factory | Discovered new exit (range 16) 8552 | -5/Factory | Identified exit to Factory 8579 | -5/Factory | Loaded intel: 8 recycling unit locations 8643 | -5/Factory | Learned location of Protoforge (-3) 8704 | -5/Factory | Learned location of 1 exit from Proximity Caves 8746 | -5/Factory | Learned 4 Upper Caves zone layouts 8778 | -5/Factory | Loaded intel: 4 garrison access locations 8800 | -5/Factory | Learned Testing terminal intel 8816 | -5/Factory | Learned Testing emergency access door positions 8819 | -5/Factory | Learned location of 1 exit from Extension 8842 | -5/Factory | Build established: Scavenger-Scout 8942 | -5/Factory | Fabricated H-66 Slayer (x2) 9070 | -5/Factory | Central database locked down 9134 | -5/Factory | Entered Upper Caves 9134 | -5/Upper Caves | Accompanied by 2 allies 9135 | -5/Upper Caves | Identified exit to Upper Caves 9136 | -5/Upper Caves | UFD Scientist delivered a prototype 9137 | -5/Upper Caves | Found Prototype Protection 9371 | -5/Upper Caves | Learned 8 Factory zone layouts 9418 | -5/Upper Caves | Entered another Upper Caves area 9427 | -5/Upper Caves | Encountered a Warlord checkpoint 9430 | -5/Upper Caves | Learned Factory terminal intel 9524 | -5/Upper Caves | Spotted B-75 Beast 9589 | -5/Upper Caves | Learned Factory trap positions 9606 | -5/Upper Caves | Attracted the attention of an 0b10 checkpoint 9663 | -5/Upper Caves | Discovered new exit (range 14) 9666 | -5/Upper Caves | Identified exit to Warlord 9673 | -5/Upper Caves | Entered Warlord 9728 | -5/Warlord | Visited the Vortex Lab 9730 | -5/Warlord | Found Prototype Energy Cannon 9730 | -5/Warlord | Identified Vortex Driver 9750 | -5/Warlord | Warlord's base attacked by MAIN.C 9813 | -5/Warlord | Rebuked by Warlord 9881 | -5/Warlord | Found Prototype Device 9881 | -5/Warlord | Identified Exp. Focal Shield 9885 | -5/Warlord | Found Prototype Processor 9885 | -5/Warlord | Identified Exp. Targeting Computer 9888 | -5/Warlord | Found Prototype Processor 9888 | -5/Warlord | Identified Spectral Analyzer 9900 | -5/Warlord | Found Prototype Reactor 9900 | -5/Warlord | Identified Vortex Chain Reactor 10052 | -5/Warlord | Opened side exit 10070 | -5/Warlord | Spotted Striker 10091 | -5/Warlord | Spotted Executioner 10095 | -5/Warlord | Discovered new exit (range 9) 10096 | -5/Warlord | Identified exit to Proximity Caves 10097 | -5/Warlord | Entered Proximity Caves 10132 | -4/Proximity Caves | Identified Enh. Scrap Shield 10173 | -4/Proximity Caves | Learned Research machine intel 10175 | -4/Proximity Caves | Learned location of 1 exit from Research 10179 | -4/Proximity Caves | Attracted the attention of an 0b10 checkpoint 10185 | -4/Proximity Caves | Spotted B-86 Titan 10223 | -4/Proximity Caves | Entered Factory 10223 | -4/Factory | Evolved 2 slots: Propulsion x1, Utility x1 10224 | -4/Factory | Identified exit to Upper Caves 10226 | -4/Factory | Loaded intel: 99 trap records 10227 | -4/Factory | Loaded intel: 25 terminal locations 10429 | -4/Factory | Loaded intel: 7 recycling unit locations 10605 | -4/Factory | Build established: Infiltrator-Ninja 10606 | -4/Factory | Entered Upper Caves 10606 | -4/Upper Caves | Accompanied by 1 ally 10675 | -4/Upper Caves | Discovered new exit (range 6) 10677 | -4/Upper Caves | Identified exit to Upper Caves 10688 | -4/Upper Caves | Entered another Upper Caves area 10688 | -4/Upper Caves | Accompanied by 1 ally 10731 | -4/Upper Caves | Attracted the attention of an 0b10 outpost 10754 | -4/Upper Caves | Discovered new exit (range 8) 10756 | -4/Upper Caves | Identified exit to Zhirov 10759 | -4/Upper Caves | Learned Research trap positions 10817 | -4/Upper Caves | Entered Zhirov 10817 | -4/Zhirov | Discovered new exit (range 3) 10822 | -4/Zhirov | Met Zhirov 10828 | -4/Zhirov | Learned location of Quarantine (-3) 10828 | -4/Zhirov | Learned location of Command (-1) 10831 | -4/Zhirov | Zhirov requested help retrieving the SGEMP Prototype 10835 | -4/Zhirov | Found Alien Artifact 10835 | -4/Zhirov | Identified Integrated Reactor 10835 | -4/Zhirov | Installed Integrated Reactor, increased core energy generation (+10) 10862 | -4/Zhirov | Identified exit to Proximity Caves 10863 | -4/Zhirov | Entered Proximity Caves 10864 | -3/Proximity Caves | Identified exit to Research 10923 | -3/Proximity Caves | Attracted the attention of an 0b10 outpost 10924 | -3/Proximity Caves | Attracted the attention of an 0b10 checkpoint 10937 | -3/Proximity Caves | Entered Research 10937 | -3/Research | Evolved 2 slots: Utility x2 10938 | -3/Research | Identified exit to Quarantine 10938 | -3/Research | Identified exit to Research 10939 | -3/Research | Loaded intel: 68 trap records 10940 | -3/Research | Loaded intel: 116 machine locations 10969 | -3/Research | Found Prototype Device 10969 | -3/Research | Identified Exp. Thermal Shield 10972 | -3/Research | Loaded intel: 5 recycling unit locations 10992 | -3/Research | Spotted B-86 Titan 11132 | -3/Research | Discovered exit to Research (range 18) 11137 | -3/Research | Revision forces began assault on 0b10 11144 | -3/Research | P-80 Master assimilated allied Revision 11164 | -3/Research | Lost 3 parts (1p2u) 11291 | -3/Research | Discovered exit to Quarantine (range 20) 11339 | -3/Research | Fabricated Imp. Cloaking Device? 11407 | -3/Research | Met up with Revision 17++ 11415 | -3/Research | Discovered exit to Research (range 7) 11430 | -3/Research | Spotted B-86 Titan 11432 | -3/Research | Lost 3 allies 11518 | -3/Research | Fabricated Exp. Core Analyzer (x1) 11554 | -3/Research | Fabricated Imp. Transmission Jammer (x2) 11589 | -3/Research | Entered Quarantine 11625 | -3/Quarantine | Spotted Alpha 7 11672 | -3/Quarantine | Found Alien Launcher 11702 | -3/Quarantine | Discovered exit to Research (range 10) 11848 | -3/Quarantine | Build established: Hacker-Ninja 12005 | -3/Quarantine | Scanned by Researcher 12091 | -3/Quarantine | Identified Sigix Terminator 12144 | -3/Quarantine | Central database locked down 12204 | -3/Quarantine | Found Alien Artifact 12204 | -3/Quarantine | Identified Core Reset Matrix 12204 | -3/Quarantine | Used Core Reset Matrix 12208 | -3/Quarantine | Detected hypermatrix surge 12208 | -3/Quarantine | Sensed 9 artifacts in vicinity 12261 | -3/Quarantine | Found Core Cannon 12268 | -3/Quarantine | Met incapacitated Sigix Warrior 12268 | -3/Quarantine | Lockdown squad dispatched 12272 | -3/Quarantine | Acquired the access code to the Sigix quarantine chamber 12273 | -3/Quarantine | Unlocked Sigix quarantine chamber 12275 | -3/Quarantine | Found Sigix Containment Pod 12280 | -3/Quarantine | Spotted Lightning 12280 | -3/Quarantine | Spotted Lightning 12280 | -3/Quarantine | Spotted Lightning 12296 | -3/Quarantine | Spotted Fortress 12308 | -3/Quarantine | Discovered new exit (range 5) 12308 | -3/Quarantine | Discovered new exit (range 6) 12309 | -3/Quarantine | Identified exit to Section 7 12310 | -3/Quarantine | Identified exit to Protoforge 12311 | -3/Quarantine | Entered Section 7 12312 | -3/Section 7 | Forged Quantum Companion 12312 | -3/Section 7 | Detected hypermatrix surge 12312 | -3/Section 7 | Sensed 23 artifacts in vicinity 12346 | -3/Section 7 | Found Integrated Mediator 12346 | -3/Section 7 | Installed Integrated Mediator, increased core attachment efficiency 12398 | -3/Section 7 | Found Integrated Reactor 12398 | -3/Section 7 | Installed Integrated Reactor, increased core energy generation (+10) 12417 | -3/Section 7 | Spotted S7 Guard 12420 | -3/Section 7 | Found Navigation Efficiency Matrix 12420 | -3/Section 7 | Installed Navigation Efficiency Matrix, process failed with unexpected side effects 12431 | -3/Section 7 | Spotted S7 Guard 12432 | -3/Section 7 | Spotted S7 Guard 12435 | -3/Section 7 | Found Core Membrane 12435 | -3/Section 7 | Installed Core Membrane, gained immunity to corruption 12444 | -3/Section 7 | Found Core Physics Calibrator 12456 | -3/Section 7 | Spotted B-86 Titan 12478 | -3/Section 7 | Spotted Alpha 7 12478 | -3/Section 7 | Spotted Alpha 7 12492 | -3/Section 7 | Found Spacefold Activator 12502 | -3/Section 7 | Spotted Executioner 12502 | -3/Section 7 | Spotted Executioner 12504 | -3/Section 7 | Scanned by Researcher 12519 | -3/Section 7 | Spotted B-99 Colossus 12533 | -3/Section 7 | Spotted Executioner 12533 | -3/Section 7 | Spotted Executioner 12537 | -3/Section 7 | Activated Sigix Exoskeleton 12537 | -3/Section 7 | Received instructions from Sigix Warrior 12555 | -3/Section 7 | Allies destroyed Executioner 12559 | -3/Section 7 | Allies destroyed Executioner 12576 | -3/Section 7 | Found Prototype Processor 12576 | -3/Section 7 | Identified Exp. Targeting Computer 12579 | -3/Section 7 | Found Prototype Processor 12579 | -3/Section 7 | Identified Exp. Core Analyzer 12594 | -3/Section 7 | Spotted Striker 12594 | -3/Section 7 | Spotted Striker 12643 | -3/Section 7 | Allies destroyed Striker 12648 | -3/Section 7 | Allies destroyed Striker 12651 | -3/Section 7 | Found Sigix Sheargun 12654 | -3/Section 7 | Found Sigix Sheargun 12657 | -3/Section 7 | Spotted Striker 12657 | -3/Section 7 | Spotted Striker 12674 | -3/Section 7 | Sigix Exoskeleton integrity reduced to 80% 12715 | -3/Section 7 | Spotted Executioner 12737 | -3/Section 7 | Found Transdimensional Reconstructor 12739 | -3/Section 7 | Found Transdimensional Reconstructor 12740 | -3/Section 7 | Warped through subspace 12747 | -3/Section 7 | Sigix Exoskeleton integrity reduced to 60% 12781 | -3/Section 7 | Allies destroyed Executioner 12783 | -3/Section 7 | Sigix Exoskeleton integrity reduced to 40% 12839 | -3/Section 7 | Found Microwarp Drive 12877 | -3/Section 7 | Sigix Exoskeleton integrity reduced to 20% 12880 | -3/Section 7 | Spotted Striker 12885 | -3/Section 7 | Destroyed S7 Guard 12890 | -3/Section 7 | Found Prototype Protection 12890 | -3/Section 7 | Identified Hvy. Regenerative Plating 12899 | -3/Section 7 | Core integrity fell below 50% 12906 | -3/Section 7 | Spotted S7 Guard 12922 | -3/Section 7 | Found Core Regenerator 12922 | -3/Section 7 | Used Core Regenerator, restored core integrity (+325) 12938 | -3/Section 7 | Entered Research 12938 | -2/Research | Evolved 2 slots (calibrated): Power x1, -Propulsion x2, Utility x2, Weapon x1 12963 | -2/Research | Lost 5 parts (2p2n1w) 13099 | -2/Research | Spotted B-90 Cyclops 13143 | -2/Research | Spotted B-90 Cyclops 13188 | -2/Research | First assault squad dispatched 13231 | -2/Research | Build established: Alien-Assassin 13280 | -2/Research | Discovered new exit (range 4) 13283 | -2/Research | Identified exit to Testing 13283 | -2/Research | Entered Testing 13446 | -2/Testing | Found Prototype Device 13446 | -2/Testing | Identified Exp. Weapon Cycler 13533 | -2/Testing | First assault squad dispatched 13538 | -2/Testing | Spotted PL-IIEADA9PCJ 13626 | -2/Testing | Found Prototype Device 13626 | -2/Testing | Identified 2N-1CE's Frost Array 13648 | -2/Testing | Core integrity fell below 50% 13678 | -2/Testing | Lost 4 parts (2n2u) 13695 | -2/Testing | Identified exit to Access 13742 | -2/Testing | Found Prototype Energy Gun 13742 | -2/Testing | Identified Hyp. EM Gauss Rifle 13803 | -2/Testing | Core integrity fell below 20% 13811 | -2/Testing | Entered Access 13811 | -1/Access | Evolved 2 slots (calibrated): -Power x1, Propulsion x1, Utility x1, Weapon x1 13823 | -1/Access | Lost 4 parts (3n1u) 14092 | -1/Access | Build established: Alien-Mutant 14229 | -1/Access | Lost 5 parts (4n1u) 14280 | -1/Access | Lost 3 parts (2u1w) 14416 | -1/Access | Energy Cycler disabled 14492 | -1/Access | Core integrity fell below 50% 14532 | -1/Access | Spotted B-99 Colossus 14557 | -1/Access | Lost 3 parts (1n2u) 14569 | -1/Access | Emitted hypermatrix ping 14574 | -1/Access | Assembled emerged from beneath the floor 14605 | -1/Access | Core integrity fell below 20% 14621 | -1/Access | Allies destroyed B-99 Colossus 14634 | -1/Access | Found Prototype Ballistic Gun 14634 | -1/Access | Identified Multirail 14635 | -1/Access | Lost 12 parts (1p3n8u) 14648 | -1/Access | Lost 4 allies 14665 | -1/Access | Assembled emerged from beneath the floor 14665 | -1/Access | Garrison activated, responded to threat 14685 | -1/Access | Discovered new exit (range 9) 14690 | -1/Access | Identified exit to Command 14691 | -1/Access | Intercept squad dispatched 14719 | -1/Access | Lost 8 allies 14721 | -1/Access | Spotted Tracker 14721 | -1/Access | Spotted Tracker 14731 | -1/Access | Core destroyed Last Messages --------------- 14728_ Penetrated by Slug. 14728_ Slug penetrates Earth. 14728_ Penetrated by Slug. Quantum Companion releases a shadow of itself that zips off towards Q601-n. 14729_ Imp. Core Shielding destroyed. 14729_ K-01 Serf collects debris. 14729_ Penetrated by Slug. 14729_ System Shield destroyed. 14729_ Slug penetrates Earth. 14729_ Q-thruster destroyed. 14729_ Penetrated by Slug. 14730_ Slug penetrates Wall. 14730_ Slug penetrates Earth. 14730_ Penetrated by Slug. 14730_ Slug penetrates Earth. 14730_ K-01 Serf collects debris. Quantum Companion releases a shadow of itself that zips off towards Q601-n. 14731_ Spacefolded through Earth. Map ----- +----------------------------------------------------+ | ????????????# " * # #????????????????????? | | ????????????# # #????????????????????? | | ????????????# + +????????????????????? | | ????????????# # #????????????????????? | | ????????????# # #????????????????????? | | ????????????####+######### #????????????????????? | | ???????????????# #???????T #????????????????????? | | ???????????????# #???????# #????????????????????? | | ??????#????????# #??###### #????????????????????? | | ??????# ???????# #??# #????????????????????? | | ??????# ??????# #??# #????????????????????? | | ??????# ??????# #??# #????????????????????? | | ??????# ?????# #??# #####????????????????????? | | ???????? ????# #??# #????????????????????????? | | ???????###+##### #??# #?#####??????????????????? | | ???????# #?## #?# #??????????????????? | | ???????# #?#T ### > #??????????????????? | | ???????+ #?# ## "??????????????????? | | ???????# #?## ### "??????????????????? | | ???????# #??# #?# "??????????????????? | | ???????# #??# #?# #??????????????????? | | ???????# #??# #?# ##??????????????????? | | ???????# #??# #?# ##??????????????????? | | ???????# #??# ### T#??????????????????? | | ???????# #??# ##??????????????????? | | ???????# #??# @ #???????????????????? | | ???????# #??##########???????????????????? | | ???????# #???????#???????????????????????? | | ???????# #??????###??????????????????????? | | ???????# #??????# #??????????????????????? | | ???????# ########"#######????????????????? | | ???????# #######??????????? | | ???????# [ % +???????? | | ???#???# [%= =! ########?????????? | | #### ### %= !%= ##????????????????? | | ! ! #?????????????????? | | % !%% #???????????###???? | | ! %%!!% % #??????????? ???? | | =!!!%%= #??????????? ???? | | !%== % #??????????? ???? | | % #???????????# #???? | | #/####+######## #???? | | # ## #???? | | # ## #???? | | #### + ## #???? | | ???# ########## %* # ## #???? | | ??????????????# = # ## #???? | | ??????????????# # ! [ ## #???? | | ??????????????# # ## ##### | | ????????????### # [[ ## # | +----------------------------------------------------+ Best States ------------- Heat Dissipation 152 Energy Generation 65 Energy Capacity 440 Matter Stores 300 Matter Capacity 300 Sight Range 24 Robot Scan Range 16 Terrain Scan Density 85 Jamming Range 16 Cloak Strength 3 Additional Mass Support 12 Armor Coverage 800 Resistance: KI 25 Resistance: TH 30 Core Shielding 30 Propulsion Shielding 33 Point Defense Rating 240 Phase Shifting 15 Evasion (%) 76 Targeting Accuracy 8 Melee Accuracy 8 Core Analysis 8 Armor Integrity Analysis 40 Recoil Reduction 4 Offensive Hacking 28 Defensive Hacking 12 Item Schematics ----------------- Adv. Gravity Neutralizer | -3/Quarantine | Archive Cld. Gravmag System | -3/Quarantine | Archive Exp. Coolant Injector | -3/Section 7 | Archive Exp. Flexi-carbon Leg | -3/Section 7 | Archive Imp. Lightning Gun | -3/Section 7 | Archive Gravity Flail | -3/Section 7 | Archive Exp. Cooling System | -3/Section 7 | Archive Electron Diverter | -3/Section 7 | Archive Cld. Field Propulsion Drive | -3/Section 7 | Archive Cld. Antigrav System | -3/Section 7 | Archive Hvy. Tesla Rifle | -3/Section 7 | Archive Mni. Smartbomb Launcher | -3/Section 7 | Archive Enh. Coil Gun | -3/Section 7 | Archive Hvy. Gatling Laser | -3/Section 7 | Archive Robot Schematics ------------------ A-15 Conveyor | -3/Section 7 | Archive M-36 Artificer | -3/Section 7 | Archive S-43 Plague | -3/Section 7 | Archive R-06 Scavenger | -3/Section 7 | Archive T-07 Excavator | -3/Section 7 | Archive Fabricated ------------ H-66 Slayer | x2 | -5/Factory | Preloaded Imp. Cloaking Device | x2 | -3/Research Exp. Core Analyzer | x1 | -3/Research | Preloaded Imp. Transmission Jammer | x2 | -3/Research Repaired ---------- Nothing Alien Tech Used ----------------- Integrated Reactor Core Reset Matrix Integrated Mediator Navigation Efficiency Matrix Core Membrane Core Physics Calibrator Sigix Sheargun Transdimensional Reconstructor Spacefold Activator Core Cannon Microwarp Drive Core Regenerator Achievements -------------- Everyone Must Die Origins Signature Confirmed Challenges ------------ None Game ------ Seed MagneticMappingDetonator Manual? 0 Play Time 05:15:29 Cumulative 165.2 hours Start 2025.07.19 @ 18:40:52 End 2025.07.20 @ 19:27:18 Sessions 4 Manual Loads 0 Difficulty Rogue Special Mode None Game No. 180 Rogue 180 Adventurer 0 Explorer 0 Win Type - Total 3 Types 1/0/0/1/0/0/0/0/0/1 Lore% 67 Gallery% 62 Achievement% 55 Wizard Run 0 Options --------- Layout 1 ASCII 0 Keyboard 0 Movement Arrows Keybinds 0 Fullscreen 1 Font 36/Smallcaps Map View 50x40 Zoom Use 0% Tactical HUD 1 Map Filters NONE Filters NONE Steam 1 RUN: c6418e7e-c0e0-4376-93c3-666e7f21d946